[Event "Early-Titled-Tuesday-Blitz-May-28-2024"]
[Site "Chess.com"]
[Date "2024.05.28"]
[Round "5"]
[White "BardArtem"]
[Black "banane_verte"]
[Result "1-0"]
[WhiteElo "2800"]
[BlackElo "2503"]
[TimeControl "180+1"]
[EndTime "8:57:32 PDT"]
[Termination "BardArtem won by checkmate"]

1. Nf3 {[%clk 0:03:00.9]} 1... d5 {[%clk 0:02:59.2]} 2. b3 {[%clk 0:02:58.3]}
2... e6 {[%clk 0:02:58.9]} 3. Bb2 {[%clk 0:02:58.2]} 3... Nf6 {[%clk 0:02:59.2]}
4. e3 {[%clk 0:02:58.1]} 4... Be7 {[%clk 0:02:59]} 5. c4 {[%clk 0:02:57.9]} 5...
O-O {[%clk 0:02:58.7]} 6. Nc3 {[%clk 0:02:57.8]} 6... b6 {[%clk 0:02:49.8]} 7.
cxd5 {[%clk 0:02:57.3]} 7... Nxd5 {[%clk 0:02:49.6]} 8. Nxd5 {[%clk 0:02:53.8]}
8... Qxd5 {[%clk 0:02:48.4]} 9. Bc4 {[%clk 0:02:41.8]} 9... Qa5 {[%clk
0:02:41.3]} 10. O-O {[%clk 0:02:29.7]} 10... Bb7 {[%clk 0:02:41.3]} 11. d4
{[%clk 0:02:23.1]} 11... Nd7 {[%clk 0:02:40.8]} 12. a4 {[%clk 0:02:11.4]} 12...
Rfd8 {[%clk 0:02:32.3]} 13. Qe2 {[%clk 0:02:03.7]} 13... c5 {[%clk 0:02:28]} 14.
dxc5 {[%clk 0:01:55]} 14... Nxc5 {[%clk 0:02:23.6]} 15. Rfd1 {[%clk 0:01:46.6]}
15... Ne4 {[%clk 0:02:17.8]} 16. Rxd8+ {[%clk 0:01:42.1]} 16... Rxd8 {[%clk
0:02:17.6]} 17. Rd1 {[%clk 0:01:42.7]} 17... Rxd1+ {[%clk 0:01:23.5]} 18. Qxd1
{[%clk 0:01:43.6]} 18... Nd6 {[%clk 0:01:24.1]} 19. Ba3 {[%clk 0:01:35.2]} 19...
Bxf3 {[%clk 0:01:10.4]} 20. gxf3 {[%clk 0:01:13.7]} 20... Qg5+ {[%clk
0:00:50.9]} 21. Kf1 {[%clk 0:01:11.3]} 21... Qe5 {[%clk 0:00:43.6]} 22. f4
{[%clk 0:00:49.2]} 22... Qe4 {[%clk 0:00:43.8]} 23. Qd3 {[%clk 0:00:46]} 23...
Qc6 {[%clk 0:00:32.9]} 24. Ke2 {[%clk 0:00:37.1]} 24... g6 {[%clk 0:00:32.5]}
25. Bb2 {[%clk 0:00:27.7]} 25... Nxc4 {[%clk 0:00:30.2]} 26. bxc4 {[%clk
0:00:28.6]} 26... Qxa4 {[%clk 0:00:14.1]} 27. h4 {[%clk 0:00:15]} 27... Qa2
{[%clk 0:00:05.3]} 28. Qd4 {[%clk 0:00:13]} 28... f6 {[%clk 0:00:05.6]} 29. Kf3
{[%clk 0:00:10.5]} 29... Kf7 {[%clk 0:00:05.7]} 30. h5 {[%clk 0:00:10.5]} 30...
Qb1 {[%clk 0:00:03]} 31. Kg2 {[%clk 0:00:08.2]} 31... Qf5 {[%clk 0:00:03]} 32.
hxg6+ {[%clk 0:00:08.1]} 32... hxg6 {[%clk 0:00:03.9]} 33. Bc3 {[%clk
0:00:04.3]} 33... Qg4+ {[%clk 0:00:03.6]} 34. Kf1 {[%clk 0:00:05]} 34... Qf5
{[%clk 0:00:03.7]} 35. Qd7 {[%clk 0:00:03.5]} 35... Qb1+ {[%clk 0:00:03.1]} 36.
Kg2 {[%clk 0:00:04.1]} 36... Qc2 {[%clk 0:00:03.2]} 37. Qd4 {[%clk 0:00:02.9]}
37... Qf5 {[%clk 0:00:03.5]} 38. Kf1 {[%clk 0:00:03.1]} 38... a5 {[%clk
0:00:03.9]} 39. Qxb6 {[%clk 0:00:02.6]} 39... a4 {[%clk 0:00:03.6]} 40. Qa6
{[%clk 0:00:02]} 40... Qc2 {[%clk 0:00:04]} 41. Bd4 {[%clk 0:00:01.5]} 41... Qb3
{[%clk 0:00:04]} 42. c5 {[%clk 0:00:02]} 42... a3 {[%clk 0:00:03.7]} 43. c6
{[%clk 0:00:02.7]} 43... a2 {[%clk 0:00:03.7]} 44. c7 {[%clk 0:00:03.3]} 44...
Qb1+ {[%clk 0:00:03.5]} 45. Kg2 {[%clk 0:00:03.9]} 45... Qe4+ {[%clk 0:00:02.9]}
46. Kh2 {[%clk 0:00:04.3]} 46... Qc2 {[%clk 0:00:01]} 47. Kg2 {[%clk 0:00:02.3]}
47... a1=Q {[%clk 0:00:01]} 48. Qxa1 {[%clk 0:00:01.9]} 48... Qxc7 {[%clk
0:00:01.8]} 49. Qh1 {[%clk 0:00:02.6]} 49... Qc6+ {[%clk 0:00:02.2]} 50. f3
{[%clk 0:00:02.4]} 50... Qc2+ {[%clk 0:00:02]} 51. Kg3 {[%clk 0:00:03]} 51...
Bf8 {[%clk 0:00:01.8]} 52. Qa1 {[%clk 0:00:02.5]} 52... Bg7 {[%clk 0:00:01.4]}
53. Qa7+ {[%clk 0:00:03.2]} 53... Kg8 {[%clk 0:00:02]} 54. Qe7 {[%clk
0:00:03.6]} 54... Qf5 {[%clk 0:00:01.4]} 55. e4 {[%clk 0:00:04]} 55... Qg5+
{[%clk 0:00:01.4]} 56. fxg5 {[%clk 0:00:03.6]} 56... e5 {[%clk 0:00:02.2]} 57.
Qe8+ {[%clk 0:00:02.8]} 57... Bf8 {[%clk 0:00:02.2]} 58. Bc5 {[%clk 0:00:03.7]}
58... Kh7 {[%clk 0:00:01.9]} 59. Qxf8 {[%clk 0:00:04.1]} 59... fxg5 {[%clk
0:00:02.8]} 60. Qe7+ {[%clk 0:00:03.9]} 60... Kh6 {[%clk 0:00:03.7]} 61. Qxe5
{[%clk 0:00:03.6]} 61... g4 {[%clk 0:00:04.6]} 62. Bf8+ {[%clk 0:00:03.9]} 62...
Kh7 {[%clk 0:00:04.9]} 63. Qg7# {[%clk 0:00:04.8]} 1-0

[Event "Early-Titled-Tuesday-Blitz-May-28-2024"]
[Site "Chess.com"]
[Date "2024.05.28"]
[Round "5"]
[White "RobertoJBM"]
[Black "MKlose11"]
[Result "0-1"]
[WhiteElo "2786"]
[BlackElo "2619"]
[TimeControl "180+1"]
[EndTime "8:57:34 PDT"]
[Termination "MKlose11 won by resignation"]

1. d4 {[%clk 0:03:00.9]} 1... Nf6 {[%clk 0:02:59.7]} 2. Nf3 {[%clk 0:03:01.3]}
2... c5 {[%clk 0:03:00.4]} 3. e3 {[%clk 0:03:02.2]} 3... Nc6 {[%clk 0:03:00]} 4.
d5 {[%clk 0:03:01.9]} 4... Nb8 {[%clk 0:02:57.7]} 5. c4 {[%clk 0:03:01.9]} 5...
d6 {[%clk 0:02:58.3]} 6. Nc3 {[%clk 0:03:02]} 6... g6 {[%clk 0:02:59]} 7. Bd3
{[%clk 0:03:00.9]} 7... Bg7 {[%clk 0:02:59.4]} 8. h3 {[%clk 0:03:01.2]} 8... O-O
{[%clk 0:02:59.9]} 9. O-O {[%clk 0:03:01.4]} 9... Na6 {[%clk 0:03:00.5]} 10. e4
{[%clk 0:03:01.4]} 10... Nc7 {[%clk 0:03:01.2]} 11. Re1 {[%clk 0:03:01.9]} 11...
Nd7 {[%clk 0:03:01.4]} 12. Bg5 {[%clk 0:03:00.6]} 12... Rb8 {[%clk 0:03:01.5]}
13. Qd2 {[%clk 0:03:00.3]} 13... a6 {[%clk 0:02:58.2]} 14. a4 {[%clk 0:03:00]}
14... b6 {[%clk 0:02:48.7]} 15. Rad1 {[%clk 0:02:47.7]} 15... f6 {[%clk
0:02:48.3]} 16. Be3 {[%clk 0:02:45.5]} 16... Ne5 {[%clk 0:02:46.8]} 17. Be2
{[%clk 0:02:45]} 17... Nxf3+ {[%clk 0:02:43.3]} 18. Bxf3 {[%clk 0:02:45.1]}
18... b5 {[%clk 0:02:43.8]} 19. b3 {[%clk 0:02:39.8]} 19... bxc4 {[%clk
0:02:39.9]} 20. bxc4 {[%clk 0:02:39.8]} 20... Rb4 {[%clk 0:02:40.6]} 21. Be2
{[%clk 0:02:37]} 21... Bd7 {[%clk 0:02:39.8]} 22. a5 {[%clk 0:02:31.2]} 22...
Qb8 {[%clk 0:02:29.8]} 23. f4 {[%clk 0:02:19.4]} 23... Qb7 {[%clk 0:02:16.4]}
24. Bd3 {[%clk 0:02:11]} 24... Rb2 {[%clk 0:02:13.4]} 25. Qc1 {[%clk 0:01:52.4]}
25... Rb8 {[%clk 0:02:10.8]} 26. Rd2 {[%clk 0:01:42.9]} 26... Qb4 {[%clk
0:01:58.8]} 27. Ree2 {[%clk 0:01:36.6]} 27... Rxd2 {[%clk 0:01:56.8]} 28. Bxd2
{[%clk 0:01:37.5]} 28... Qxa5 {[%clk 0:01:52.4]} 29. Be1 {[%clk 0:01:33.7]}
29... Qb6 {[%clk 0:01:45.5]} 30. Ra2 {[%clk 0:01:30.4]} 30... a5 {[%clk
0:01:36]} 31. Qa3 {[%clk 0:01:21.3]} 31... f5 {[%clk 0:01:13.3]} 32. exf5 {[%clk
0:01:13.7]} 32... gxf5 {[%clk 0:01:06.7]} 33. Nd1 {[%clk 0:00:31.9]} 33... a4
{[%clk 0:00:52.3]} 34. Kh2 {[%clk 0:00:27.5]} 34... Qb3 {[%clk 0:00:52.3]} 35.
Ne3 {[%clk 0:00:18.8]} 35... Qxa3 {[%clk 0:00:51.5]} 36. Rxa3 {[%clk 0:00:19.7]}
36... Rb3 {[%clk 0:00:43.5]} 37. Rxb3 {[%clk 0:00:18.4]} 37... axb3 {[%clk
0:00:44.4]} 38. Nxf5 {[%clk 0:00:14.6]} 38... Bf6 {[%clk 0:00:41.5]} 39. g4
{[%clk 0:00:06.2]} 39... Kf8 {[%clk 0:00:32.6]} 40. g5 {[%clk 0:00:06.6]} 40...
Bh8 {[%clk 0:00:32.6]} 41. Kg3 {[%clk 0:00:06.9]} 41... Na6 {[%clk 0:00:32.2]}
42. Ne3 {[%clk 0:00:06.6]} 42... Kg8 {[%clk 0:00:29.6]} 43. h4 {[%clk
0:00:06.5]} 43... Nb4 {[%clk 0:00:28.8]} 44. Bxb4 {[%clk 0:00:06.7]} 44... cxb4
{[%clk 0:00:29.7]} 45. Kf3 {[%clk 0:00:06]} 45... b2 {[%clk 0:00:27.7]} 46. Bb1
{[%clk 0:00:05.7]} 46... Ba4 {[%clk 0:00:27.7]} 47. Ke4 {[%clk 0:00:05.5]} 47...
Bc3 {[%clk 0:00:24.3]} 48. Nf5 {[%clk 0:00:05.2]} 48... Kf7 {[%clk 0:00:23.6]}
49. Nd4 {[%clk 0:00:05.7]} 49... Bd1 {[%clk 0:00:16.5]} 50. f5 {[%clk
0:00:02.3]} 50... Bg4 {[%clk 0:00:15.7]} 51. Nf3 {[%clk 0:00:01.9]} 51... Bh3
{[%clk 0:00:11.9]} 52. Kf4 {[%clk 0:00:02.3]} 52... Bf1 {[%clk 0:00:11.5]} 53.
h5 {[%clk 0:00:02.5]} 53... Bxc4 {[%clk 0:00:11.6]} 54. Ke4 {[%clk 0:00:02.9]}
54... Bf1 {[%clk 0:00:10.3]} 55. g6+ {[%clk 0:00:03.1]} 55... hxg6 {[%clk
0:00:10.4]} 56. hxg6+ {[%clk 0:00:03.7]} 56... Kg7 {[%clk 0:00:10.9]} 57. Ng5
{[%clk 0:00:04.5]} 57... Bg2+ {[%clk 0:00:10.1]} 58. Kd3 {[%clk 0:00:04.4]}
58... Bxd5 {[%clk 0:00:10.7]} 59. Ne6+ {[%clk 0:00:04.6]} 59... Bxe6 {[%clk
0:00:10.3]} 60. fxe6 {[%clk 0:00:05.5]} 60... Kxg6 {[%clk 0:00:11.1]} 61. Ba2
{[%clk 0:00:05.4]} 61... Kf6 {[%clk 0:00:11.6]} 62. Kc2 {[%clk 0:00:05.4]} 62...
Be5 {[%clk 0:00:11.9]} 63. Kd3 {[%clk 0:00:05.8]} 63... Kf5 {[%clk 0:00:12.3]}
64. Bb1 {[%clk 0:00:05.5]} 64... Kxe6 {[%clk 0:00:12]} 65. Kc4 {[%clk
0:00:05.6]} 65... Bc3 {[%clk 0:00:12.4]} 66. Be4 {[%clk 0:00:05.4]} 66... Ke5
{[%clk 0:00:12.6]} 0-1

[Event "Early-Titled-Tuesday-Blitz-May-28-2024"]
[Site "Chess.com"]
[Date "2024.05.28"]
[Round "5"]
[White "karinachess1"]
[Black "Milop27"]
[Result "1/2-1/2"]
[WhiteElo "2604"]
[BlackElo "2474"]
[TimeControl "180+1"]
[EndTime "8:57:34 PDT"]
[Termination "Game drawn - insufficient material"]

1. d4 {[%clk 0:03:00.9]} 1... Nf6 {[%clk 0:02:59.4]} 2. c4 {[%clk 0:03:01.2]}
2... e6 {[%clk 0:02:59.4]} 3. Nc3 {[%clk 0:03:01.4]} 3... Bb4 {[%clk 0:02:59.3]}
4. a3 {[%clk 0:03:01.9]} 4... Bxc3+ {[%clk 0:02:58.7]} 5. bxc3 {[%clk
0:03:02.8]} 5... b6 {[%clk 0:02:58.8]} 6. f3 {[%clk 0:03:02.6]} 6... c5 {[%clk
0:02:56]} 7. e4 {[%clk 0:03:03.1]} 7... Nc6 {[%clk 0:02:48.7]} 8. Bg5 {[%clk
0:03:03.1]} 8... h6 {[%clk 0:02:48]} 9. Bh4 {[%clk 0:03:03.1]} 9... Na5 {[%clk
0:02:41]} 10. e5 {[%clk 0:03:02.7]} 10... g5 {[%clk 0:02:41.1]} 11. Bf2 {[%clk
0:03:02.7]} 11... Nh5 {[%clk 0:02:36.1]} 12. h4 {[%clk 0:03:01.9]} 12... gxh4
{[%clk 0:02:15.5]} 13. Rxh4 {[%clk 0:02:58.2]} 13... Ng7 {[%clk 0:02:15.4]} 14.
Bd3 {[%clk 0:02:39.9]} 14... Qc7 {[%clk 0:01:25.8]} 15. Qe2 {[%clk 0:02:34.8]}
15... cxd4 {[%clk 0:01:17]} 16. cxd4 {[%clk 0:02:32.7]} 16... Ba6 {[%clk
0:01:09.1]} 17. Rc1 {[%clk 0:02:32.5]} 17... Nf5 {[%clk 0:01:08.4]} 18. Rh5
{[%clk 0:02:09.1]} 18... Nb3 {[%clk 0:01:00.7]} 19. Rd1 {[%clk 0:01:46.6]} 19...
Nbxd4 {[%clk 0:00:52.6]} 20. Bxd4 {[%clk 0:01:40.9]} 20... Nxd4 {[%clk
0:00:49.8]} 21. Qe4 {[%clk 0:01:41.3]} 21... Nc6 {[%clk 0:00:46.8]} 22. Ne2
{[%clk 0:01:37.4]} 22... O-O-O {[%clk 0:00:44]} 23. c5 {[%clk 0:01:29.7]} 23...
b5 {[%clk 0:00:35.8]} 24. Nc3 {[%clk 0:01:25.8]} 24... Qa5 {[%clk 0:00:33.4]}
25. Rc1 {[%clk 0:01:20.1]} 25... Qxa3 {[%clk 0:00:32.4]} 26. Kd2 {[%clk
0:01:20.6]} 26... Rhg8 {[%clk 0:00:28.6]} 27. g4 {[%clk 0:01:19.3]} 27... b4
{[%clk 0:00:24.2]} 28. Bxa6+ {[%clk 0:01:11.7]} 28... Qxa6 {[%clk 0:00:21.7]}
29. Ne2 {[%clk 0:01:12.4]} 29... Kc7 {[%clk 0:00:15.9]} 30. Rhh1 {[%clk
0:01:06.7]} 30... Rb8 {[%clk 0:00:15.4]} 31. Rb1 {[%clk 0:01:07.2]} 31... Qb7
{[%clk 0:00:14.2]} 32. Rb3 {[%clk 0:00:58.1]} 32... Rg5 {[%clk 0:00:13.9]} 33.
f4 {[%clk 0:00:51]} 33... Rxg4 {[%clk 0:00:13.4]} 34. Rxh6 {[%clk 0:00:49.7]}
34... a5 {[%clk 0:00:13.2]} 35. Rd3 {[%clk 0:00:48.3]} 35... b3 {[%clk
0:00:10.8]} 36. Nc3 {[%clk 0:00:43.1]} 36... Qb4 {[%clk 0:00:09.1]} 37. Rh1
{[%clk 0:00:28.4]} 37... Qxe4 {[%clk 0:00:06.6]} 38. Nxe4 {[%clk 0:00:29.3]}
38... Rg2+ {[%clk 0:00:06.9]} 39. Kc1 {[%clk 0:00:24]} 39... Nb4 {[%clk
0:00:05.8]} 40. Rd2 {[%clk 0:00:16.7]} 40... Rxd2 {[%clk 0:00:03.6]} 41. Kxd2
{[%clk 0:00:17.6]} 41... a4 {[%clk 0:00:02.8]} 42. Kc3 {[%clk 0:00:09.9]} 42...
Nd5+ {[%clk 0:00:02.8]} 43. Kb2 {[%clk 0:00:09.5]} 43... Nxf4 {[%clk 0:00:03.3]}
44. Nd6 {[%clk 0:00:08.8]} 44... Nd3+ {[%clk 0:00:03]} 45. Ka3 {[%clk
0:00:08.9]} 45... Nxe5 {[%clk 0:00:02.8]} 46. Kxa4 {[%clk 0:00:07.4]} 46... b2
{[%clk 0:00:03.1]} 47. Rb1 {[%clk 0:00:07.7]} 47... Ra8+ {[%clk 0:00:02.2]} 48.
Kb3 {[%clk 0:00:07.7]} 48... Rb8+ {[%clk 0:00:02.7]} 49. Kc2 {[%clk 0:00:08]}
49... f5 {[%clk 0:00:02.9]} 50. Rxb2 {[%clk 0:00:04.1]} 50... Rxb2+ {[%clk
0:00:03]} 51. Kxb2 {[%clk 0:00:05]} 51... Nd3+ {[%clk 0:00:03.3]} 52. Kc3 {[%clk
0:00:04]} 52... Nxc5 {[%clk 0:00:03.9]} 53. Nc4 {[%clk 0:00:04.9]} 53... Kc6
{[%clk 0:00:04.1]} 54. Ne3 {[%clk 0:00:04.6]} 54... Kd6 {[%clk 0:00:03.5]} 55.
Kd4 {[%clk 0:00:05.1]} 55... f4 {[%clk 0:00:03.3]} 56. Nc4+ {[%clk 0:00:05.2]}
56... Kc6 {[%clk 0:00:03.4]} 57. Ne5+ {[%clk 0:00:05.7]} 57... Kd6 {[%clk
0:00:03.4]} 58. Nc4+ {[%clk 0:00:05.3]} 58... Ke7 {[%clk 0:00:03.8]} 59. Kxc5
{[%clk 0:00:05.2]} 59... d6+ {[%clk 0:00:04.2]} 60. Nxd6 {[%clk 0:00:04.6]}
60... f3 {[%clk 0:00:04.8]} 61. Ne4 {[%clk 0:00:05.1]} 61... Kf7 {[%clk
0:00:03.6]} 62. Kd4 {[%clk 0:00:05.6]} 62... f2 {[%clk 0:00:04.4]} 63. Nxf2
{[%clk 0:00:05.6]} 63... e5+ {[%clk 0:00:04.7]} 64. Kxe5 {[%clk 0:00:06.1]}
1/2-1/2

[Event "Early-Titled-Tuesday-Blitz-May-28-2024"]
[Site "Chess.com"]
[Date "2024.05.28"]
[Round "5"]
[White "Durarbayli"]
[Black "McCarthyStone"]
[Result "1-0"]
[WhiteElo "2905"]
[BlackElo "2461"]
[TimeControl "180+1"]
[EndTime "8:57:36 PDT"]
[Termination "Durarbayli won by resignation"]

1. e4 {[%clk 0:03:00.9]} 1... e5 {[%clk 0:02:59.9]} 2. Nf3 {[%clk 0:03:00.6]}
2... d6 {[%clk 0:03:00.6]} 3. Bc4 {[%clk 0:02:59.9]} 3... Nf6 {[%clk 0:03:00.8]}
4. d3 {[%clk 0:03:00]} 4... Be7 {[%clk 0:03:00.8]} 5. O-O {[%clk 0:03:00]} 5...
O-O {[%clk 0:03:01.5]} 6. Re1 {[%clk 0:02:59.9]} 6... c6 {[%clk 0:03:01]} 7. h3
{[%clk 0:02:58.8]} 7... Nbd7 {[%clk 0:03:01.5]} 8. a4 {[%clk 0:02:58.7]} 8...
Qc7 {[%clk 0:03:00.9]} 9. Nbd2 {[%clk 0:02:57.3]} 9... d5 {[%clk 0:03:00.4]} 10.
Bb3 {[%clk 0:02:56.8]} 10... Nc5 {[%clk 0:02:58.8]} 11. exd5 {[%clk 0:02:57.2]}
11... Nxb3 {[%clk 0:02:57.5]} 12. Nxb3 {[%clk 0:02:56.1]} 12... Nxd5 {[%clk
0:02:55.9]} 13. Nxe5 {[%clk 0:02:48.9]} 13... Bd6 {[%clk 0:02:53.8]} 14. Nf3
{[%clk 0:02:43.7]} 14... h6 {[%clk 0:02:46.7]} 15. Nbd2 {[%clk 0:02:43.4]} 15...
Nf6 {[%clk 0:02:41.2]} 16. Nc4 {[%clk 0:02:42.2]} 16... Be7 {[%clk 0:02:38.5]}
17. Bf4 {[%clk 0:02:33.7]} 17... Qd8 {[%clk 0:02:36.9]} 18. a5 {[%clk
0:02:14.8]} 18... Bf5 {[%clk 0:02:34.8]} 19. Nfe5 {[%clk 0:02:07.8]} 19... Nd5
{[%clk 0:02:26.2]} 20. Bd2 {[%clk 0:02:05.5]} 20... Rc8 {[%clk 0:02:20.4]} 21.
Qf3 {[%clk 0:02:02.3]} 21... Bh7 {[%clk 0:02:17.7]} 22. Ne3 {[%clk 0:01:37.2]}
22... Nxe3 {[%clk 0:01:51]} 23. Bxe3 {[%clk 0:01:36.8]} 23... Bb4 {[%clk
0:01:50.1]} 24. a6 {[%clk 0:01:11.8]} 24... bxa6 {[%clk 0:01:16]} 25. Nxc6
{[%clk 0:01:10.7]} 25... Qd6 {[%clk 0:01:06.5]} 26. Nxb4 {[%clk 0:00:41.8]}
26... Qxb4 {[%clk 0:01:07.4]} 27. c3 {[%clk 0:00:29.2]} 27... Qxb2 {[%clk
0:01:06.5]} 28. Bd4 {[%clk 0:00:29.9]} 28... Rce8 {[%clk 0:00:55.9]} 29. Reb1
{[%clk 0:00:21.4]} 29... Qc2 {[%clk 0:00:43.7]} 30. Qg3 {[%clk 0:00:17.5]} 30...
Bg6 {[%clk 0:00:41.3]} 31. Rd1 {[%clk 0:00:17.9]} 31... Re6 {[%clk 0:00:36.5]}
32. Rac1 {[%clk 0:00:18.2]} 32... Qe2 {[%clk 0:00:32.2]} 33. c4 {[%clk
0:00:17.7]} 33... Rd8 {[%clk 0:00:31.8]} 34. Bxa7 {[%clk 0:00:05.3]} 34... Rxd3
{[%clk 0:00:31.6]} 35. Rxd3 {[%clk 0:00:05.8]} 35... Bxd3 {[%clk 0:00:30.1]} 36.
Bd4 {[%clk 0:00:04.3]} 36... Rg6 {[%clk 0:00:28.7]} 37. Qb8+ {[%clk 0:00:03.4]}
37... Kh7 {[%clk 0:00:28.9]} 38. Be3 {[%clk 0:00:03.4]} 38... Be4 {[%clk
0:00:27.7]} 39. g4 {[%clk 0:00:01.3]} 39... Qf3 {[%clk 0:00:25.6]} 40. Qh2
{[%clk 0:00:01.7]} 40... h5 {[%clk 0:00:23.8]} 41. c5 {[%clk 0:00:02.1]} 41...
Bc6 {[%clk 0:00:23.1]} 42. g5 {[%clk 0:00:02.3]} 42... h4 {[%clk 0:00:21.9]} 43.
Kf1 {[%clk 0:00:02.2]} 43... Bb5+ {[%clk 0:00:21.7]} 44. Kg1 {[%clk 0:00:02.7]}
44... Bc6 {[%clk 0:00:22.3]} 45. Kf1 {[%clk 0:00:03.1]} 45... a5 {[%clk
0:00:23]} 46. Kg1 {[%clk 0:00:01]} 46... a4 {[%clk 0:00:23.2]} 47. Kf1 {[%clk
0:00:01.2]} 47... a3 {[%clk 0:00:23.6]} 48. Ra1 {[%clk 0:00:01.9]} 48... Bb5+
{[%clk 0:00:23.5]} 49. Kg1 {[%clk 0:00:02.3]} 49... Bc6 {[%clk 0:00:21.4]} 50.
Kf1 {[%clk 0:00:02.7]} 50... a2 {[%clk 0:00:22]} 51. Kg1 {[%clk 0:00:02.9]}
51... Bd5 {[%clk 0:00:14.6]} 52. Kf1 {[%clk 0:00:03.1]} 52... Qe4 {[%clk
0:00:13.6]} 53. Qf4 {[%clk 0:00:02.3]} 53... Qb1+ {[%clk 0:00:13.1]} 54. Ke2
{[%clk 0:00:03.2]} 54... Qb2+ {[%clk 0:00:11.5]} 55. Bd2 {[%clk 0:00:02.5]}
55... Re6+ {[%clk 0:00:11.7]} 56. Kd3 {[%clk 0:00:02.7]} 56... Qb3+ {[%clk
0:00:10.2]} 57. Bc3 {[%clk 0:00:02.7]} 57... Bc4+ {[%clk 0:00:09.4]} 58. Kd4
{[%clk 0:00:03.2]} 58... Be2 {[%clk 0:00:03.8]} 59. Qf5+ {[%clk 0:00:01]} 59...
g6 {[%clk 0:00:02.4]} 60. Qd5 {[%clk 0:00:01.8]} 60... Qxd5+ {[%clk 0:00:01.6]}
61. Kxd5 {[%clk 0:00:02.7]} 61... Re4 {[%clk 0:00:01.5]} 62. Kxe4 {[%clk
0:00:02.3]} 62... Bh5 {[%clk 0:00:02.4]} 63. Kf4 {[%clk 0:00:03]} 63... f5
{[%clk 0:00:03.1]} 64. Bf6 {[%clk 0:00:03.5]} 64... Kg8 {[%clk 0:00:03.4]} 65.
Rxa2 {[%clk 0:00:04.2]} 65... Kf7 {[%clk 0:00:04.3]} 66. Ra7+ {[%clk 0:00:04.9]}
66... Ke6 {[%clk 0:00:04.9]} 67. Re7+ {[%clk 0:00:05.8]} 67... Kd5 {[%clk
0:00:05.8]} 68. Re5+ {[%clk 0:00:06.2]} 1-0